lending/lending_fUSD_20250408
["ID","MTS","AMOUNT","RATE_DAILY","PERIOD"]
[357515418,1744104640228,-500.0,0.00020998,2]
[357515419,1744104640237,-500.0,0.00020998,2]
[357515420,1744104640246,-500.0,0.00020998,2]
[357515421,1744104640256,-500.0,0.00020998,2]
[357515422,1744104640265,-92.15518636,0.00020998,2]
[357515423,1744104640277,-407.84481364,0.00020998,2]
[357515424,1744104640286,-470.17421281,0.00020998,2]
[357515441,1744104642842,-29.82578719,0.00020998,2]
[357515443,1744104642851,-492.07049141,0.00020998,2]
[357515444,1744104642951,-7.92950859,0.00020998,2]
[357515445,1744104642960,-365.58369141,0.00020998,2]
[357515461,1744104645890,-134.41630859,0.00020998,2]
[357515462,1744104645899,-150.64469615,0.00020998,2]
[357515463,1744104645974,-349.35530385,0.00020998,2]
[357515464,1744104645983,-500.0,0.00020998,2]
[357515465,1744104645992,-500.0,0.00020998,2]
[357515466,1744104646002,-443.99641546,0.00020998,2]
[357515512,1744104647859,-56.00358454,0.00020998,2]
[357515513,1744104647868,-500.0,0.00020998,2]
[357515514,1744104647876,-500.0,0.00020998,2]
[357515515,1744104647886,-500.0,0.00020998,2]
[357515516,1744104647895,-500.0,0.00020998,2]
[357515517,1744104647903,-500.0,0.00020998,2]
[357515518,1744104647912,-500.0,0.00020998,2]
[357515519,1744104647922,-500.0,0.00020998,2]
[357515520,1744104647932,-500.0,0.00020998,2]
[357515521,1744104647942,-500.0,0.00020998,2]
[357515522,1744104647951,-500.0,0.00020998,2]
[357515523,1744104647960,-500.0,0.00020998,2]
[357515524,1744104647973,-500.0,0.00020998,2]
[357515525,1744104647982,-500.0,0.00020998,2]
[357515526,1744104647991,-500.0,0.00020998,2]
[357515527,1744104648002,-500.0,0.00020998,2]
[357515528,1744104648012,-500.0,0.00020998,2]
[357515529,1744104648021,-500.0,0.00020998,2]
[357515530,1744104648031,-500.0,0.00020998,2]
[357515531,1744104648040,-500.0,0.00020998,2]
[357515532,1744104648050,-500.0,0.00020998,2]
[357515533,1744104648059,-500.0,0.00020998,2]
[357515534,1744104648069,-236.07610585,0.00020998,2]
[357515535,1744104648078,-500.0,0.00020998,2]
[357515536,1744104648088,-500.0,0.00020998,2]
[357515537,1744104648097,-500.0,0.00020998,2]
[357515538,1744104648108,-500.0,0.00020998,2]
[357515539,1744104648117,-500.0,0.00020998,2]
[357515540,1744104648127,-500.0,0.00020998,2]
[357515541,1744104648136,-500.0,0.00020998,2]
[357515542,1744104648146,-300.0,0.00021,2]
[357515543,1744104648155,-8030.7291602,0.00021,2]
[357515544,1744104860242,174.67,0.00027528,120]
[357515545,1744104860467,174.67,0.00030586,120]
[357515548,1744105316641,-268.7504,0.000208,2]
[357515549,1744105316666,-1161.2496,0.000208,2]
[357515562,1744105831900,-682.26399784,0.00020419,2]
[357515563,1744105831912,-81.27600216,0.00020419,2]
[357515564,1744105831921,-300.0,0.00020799,2]
[357515565,1744105831930,-1000.0,0.000208,2]
[357515566,1744105831940,-545.54455733,0.000208,2]
[357515567,1744105831949,-2500.0,0.000208,2]
[357515568,1744105831957,-159.95478019,0.000208,2]
[357515569,1744105831967,-190.95395372,0.000208,4]
[357515570,1744105831976,-736.25187132,0.00020814,2]
[357515571,1744105831985,-151.64,0.0002089,2]
[357515572,1744105831995,-682.01490144,0.00020898,2]
[357515573,1744105832005,-332.33979638,0.00020898,2]
[357515574,1744105832014,-1235.02413746,0.00020898,2]
[357515575,1744105832252,-3.092471,0.00020898,2]
[357515594,1744105838257,-585.16723483,0.00020898,2]
[357515604,1744105840385,-1062.04880604,0.00020898,2]
[357515666,1744106612089,1961.33932718,0.0003,30]
[357515669,1744106835922,907.52,0.0003,30]
[357515680,1744107032437,-725.36,0.00018143,2]
[357515681,1744107032447,-250.0,0.00019,2]
[357515682,1744107032457,-6916.64,0.00019985,2]
[357515766,1744107043423,-2306.84784,0.00019984,2]
[357515770,1744107046171,-1115.00249334,0.00019984,2]
[357515771,1744107046200,-7928.74493027,0.00019984,2]
[357515774,1744107251108,-200.0,0.00020668,7]
[357515776,1744107265147,174.67,0.00024727,120]
[357515777,1744107265341,174.67,0.00029672,120]
[357515790,1744108179045,-2164.06995189,0.00015,2]
[357515792,1744108179084,-1811.64335702,0.00015,2]
[357515793,1744108179124,-3731.01506556,0.00015,2]
[357515795,1744108179282,-7706.72837447,0.00015,2]
[357515796,1744108179334,-1621.23542091,0.00015,2]
[357515797,1744108203842,-8047.42221787,0.00015,2]
[357515799,1744108203917,-2961.13048544,0.00015,2]
[357515809,1744108232235,-2059.11506727,0.00015,2]
[357515810,1744108232244,-250.0,0.000165,2]
[357515811,1744108232253,-1184.58,0.00017073,2]
[357515812,1744108232262,-250.0,0.00019,2]
[357515813,1744108232271,-10030.95869133,0.00019118,2]
[357515833,1744108232688,-6500.06838869,0.00019118,2]
[357515851,1744108238376,-7368.97291998,0.00019118,2]
[357515852,1744108238386,-2457.99,0.00019128,2]
[357515853,1744108238395,-200.0,0.00019295,2]
[357515854,1744108238405,-1184.58,0.00019337,2]
[357515855,1744108238415,-200.0,0.00019445,2]
[357515856,1744108238425,-150.0,0.00019575,2]
[357515857,1744108238444,-184.58,0.00019623,2]
[357515858,1744108238456,-5000.01,0.00019639,2]
[357515859,1744108238467,-827.36,0.00019667,2]
[357515860,1744108238478,-282.8,0.00019681,2]
[357515861,1744108238488,-252.77,0.00019771,2]
[357515862,1744108238498,-174.67,0.00019782,2]
[357515863,1744108238508,-2776.14,0.00019782,2]
[357515864,1744108238519,-200.0,0.0001981,7]
[357515865,1744108238529,-151.61118,0.0001982,2]
[357515866,1744108238539,-151.0,0.0001982,2]
[357515867,1744108238550,-151.0,0.0001982,2]
[357515868,1744108238559,-151.0,0.0001982,2]
[357515869,1744108238569,-1151.87,0.0001982,2]
[357515870,1744108238579,-200.0,0.00019824,2]
[357515871,1744108238590,-1182.86,0.0001985,2]
[357515872,1744108238600,-2500.0,0.000199,2]
[357515873,1744108238610,-5361.15547067,0.000199,2]
[357516073,1744108240721,-720.067019,0.0001982,2]
[357516075,1744108240731,-27954.73778508,0.000199,2]
[357516076,1744108240740,-250.0,0.00019921,2]
[357516078,1744108240749,-1837.03798038,0.00019983,2]
[357516079,1744108240759,-152.601675,0.00019983,2]
[357516080,1744108240768,-214.462214,0.00019983,2]
[357516081,1744108240777,-151.0,0.00019983,2]
[357516082,1744108240787,-720.067019,0.00019983,2]
[357516083,1744108240796,-1356.317,0.00019984,2]
[357516084,1744108240806,-151.0,0.00019984,2]
[357516085,1744108240815,-151.0,0.00019984,2]
[357516086,1744108240824,-151.0,0.00019984,2]
[357516087,1744108240833,-151.0,0.00019984,2]
[357516089,1744108240842,-273.064358,0.00019984,2]
[357516091,1744108240851,-153.76519,0.00019985,2]
[357516093,1744108240860,-3728.841649,0.00019985,2]
[357516095,1744108240870,-3728.841649,0.00019985,2]
[357516097,1744108240879,-167.494017,0.00019985,2]
[357516099,1744108240889,-151.0,0.00019985,2]
[357516100,1744108240898,-151.0,0.00019985,2]
[357516101,1744108240908,-151.396383,0.00019985,2]
[357516102,1744108240917,-152.706073,0.00019985,2]
[357516103,1744108240926,-151.570306,0.00019985,2]
[357516104,1744108240936,-151.0,0.00019985,2]
[357516105,1744108240945,-151.0,0.00019985,2]
[357516106,1744108240954,-1000.0,0.00019987,2]
[357516107,1744108240963,-151.0,0.00019999,2]
[357516108,1744108240973,-252866.87753203,0.0002,2]
[357516109,1744108240983,-3728.841649,0.0002,2]
[357516110,1744108240995,-3728.841649,0.0002,2]
[357516111,1744108241004,-258.155521,0.0002,2]
[357516112,1744108241013,-160.729051,0.0002,2]
[357516113,1744108241022,-151.0,0.0002,2]
[357516114,1744108241034,-151.0,0.0002,2]
[357516115,1744108241043,-151.0,0.0002,2]
[357516116,1744108241052,-2585.44059105,0.00020307,2]
[357516117,1744108241144,-3728.841649,0.00020341,2]
[357516118,1744108241155,-3728.841649,0.00020341,2]
[357516119,1744108241164,-151.0,0.00020341,2]
[357516120,1744108241174,-217.427297,0.00020341,2]
[357516121,1744108241185,-300.0,0.00020406,2]
[357516122,1744108241196,-1000.0,0.00020425,2]
[357516123,1744108241206,-151.63,0.00020515,2]
[357516124,1744108241215,-151.63,0.00020515,2]
[357516125,1744108241225,-196.89385922,0.00020524,2]
[357516126,1744108241234,-166.21937904,0.00020524,2]
[357516127,1744108241244,-251.73570994,0.00020524,2]
[357516128,1744108241253,-3728.841649,0.00020525,2]
[357516129,1744108241262,-3728.841649,0.00020525,2]
[357516130,1744108241271,-151.0,0.00020525,2]
[357516131,1744108241280,-544552.3145,0.00020525,2]
[357516132,1744108241290,-800.0,0.000208,7]
[357516133,1744108241299,-824.8212092,0.000209,2]
[357516134,1744108241308,-1265.7778307,0.000209,2]
[357516135,1744108241318,-1803.2062004,0.000209,2]
[357516136,1744108241327,-5221.5492511,0.000209,2]
[357516137,1744108241337,-75473.6599072,0.000209,2]
[357516138,1744108241346,-1700.0,0.000209,7]
[357516139,1744108241356,-3728.841649,0.000209,2]
[357516140,1744108241365,-3728.841649,0.000209,2]
[357516141,1744108241375,-3728.841649,0.000209,2]
[357516142,1744108241384,-3728.841649,0.000209,2]
[357516143,1744108241393,-3728.841649,0.000209,2]
[357516144,1744108241402,-3728.841649,0.000209,2]
[357516145,1744108241411,-151.0,0.000209,2]
[357516146,1744108241420,-151.0,0.000209,2]
[357516147,1744108241429,-207.21228971,0.000209,2]
[357516148,1744108241440,-3728.841649,0.00020914,2]
[357516149,1744108241449,-3728.841649,0.00020914,2]
[357516150,1744108241458,-9519.9785527,0.00020985,2]
[357516151,1744108241467,-10060.0865283,0.00020985,2]
[357516152,1744108241476,-151.63,0.0002099,2]
[357516153,1744108241485,-294.9994841,0.0002099,2]
[357516154,1744108241494,-1144.12119965,0.00020999,5]
[357516155,1744108241503,-151.0,0.00020999,2]
[357516156,1744108241512,-132473.82953806,0.00021,2]
[357516157,1744108241522,-1000.0,0.00021,2]
[357516158,1744108241531,-1000.0,0.00021,2]
[357516159,1744108241540,-1000.0,0.00021,2]
[357516160,1744108241550,-1000.0,0.00021,2]
[357516161,1744108241559,-1000.0,0.00021,2]
[357516162,1744108241568,-1000.0,0.00021,2]
[357516163,1744108241577,-1000.0,0.00021,2]
[357516164,1744108241586,-1000.0,0.00021,2]
[357516165,1744108241595,-1000.0,0.00021,2]
[357516166,1744108241605,-1000.0,0.00021,2]
[357516167,1744108241614,-1000.0,0.00021,2]
[357516168,1744108241622,-1000.0,0.00021,2]
[357516169,1744108241631,-1000.0,0.00021,2]
[357516170,1744108241640,-1000.0,0.00021,2]
[357516171,1744108241649,-1000.0,0.00021,2]
[357516172,1744108241658,-1000.0,0.00021,2]
[357516173,1744108241667,-1000.0,0.00021,2]
[357516174,1744108241676,-1000.0,0.00021,2]
[357516175,1744108241685,-1000.0,0.00021,2]
[357516176,1744108241694,-1000.0,0.00021,2]
[357516177,1744108241703,-1000.0,0.00021,2]
[357516178,1744108241712,-1000.0,0.00021,2]
[357516179,1744108241721,-1000.0,0.00021,2]
[357516180,1744108241731,-1000.0,0.00021,2]
[357516181,1744108241740,-1000.0,0.00021,2]
[357516182,1744108241748,-1000.0,0.00021,2]
[357516183,1744108241757,-1000.0,0.00021,2]
[357516184,1744108241766,-1000.0,0.00021,2]
[357516185,1744108241775,-1000.0,0.00021,2]
[357516186,1744108241783,-1000.0,0.00021,2]
[357516187,1744108241792,-1000.0,0.00021,2]
[357516188,1744108241801,-1000.0,0.00021,2]
[357516189,1744108241810,-795.56698479,0.00021,2]
[357516190,1744108241818,-300.0,0.00021,2]
[357516191,1744108241828,-3728.841649,0.00021,2]
[357516192,1744108241837,-3728.841649,0.00021,2]
[357516193,1744108241846,-3728.841649,0.00021,2]
[357516194,1744108241855,-3728.841642,0.00021,2]
[357516195,1744108241864,-2044.0,0.00021194,2]
[357516196,1744108241873,-1286.0,0.00021194,2]
[357516197,1744108241883,-153.87805346,0.00021355,2]
[357516198,1744108241892,-500.0,0.00021355,2]
[357516199,1744108241901,-500.0,0.00021355,2]
[357516200,1744108241910,-499.2495,0.00021355,2]
[357516201,1744108241919,-159.75984,0.00021355,2]
[357516202,1744108241928,-275.73770461,0.00021594,2]
[357516203,1744108241938,-1184.58,0.000216,2]
[357516204,1744108241948,-151.63,0.0002169,2]
[357516205,1744108241957,-1401.0,0.00021693,2]
[357516206,1744108241966,-1326.0,0.00021694,2]
[357516207,1744108241976,-790.0,0.00021694,2]
[357516208,1744108241986,-1436.0,0.00021694,2]
[357516209,1744108241996,-908.0,0.00021694,2]
[357516210,1744108242005,-1277.0,0.00021694,2]
[357516211,1744108242015,-544.0,0.00021694,2]
[357516212,1744108242024,-4141.0,0.00021694,2]
[357516213,1744108242034,-153.253,0.00021694,2]
[357516214,1744108242043,-852.0,0.00021694,2]
[357516215,1744108242052,-715.834,0.00021694,2]
[357516216,1744108242062,-151.0,0.00021694,2]
[357516217,1744108242071,-3957.0,0.00021694,2]
[357516218,1744108242080,-19821.4334804,0.00021694,2]
[357516219,1744108242089,-25382.81754484,0.00021726,2]
[357516223,1744108243386,-720.067019,0.00019985,2]
[357516224,1744108243395,-720.067019,0.00019999,2]
[357516225,1744108243405,-720.067019,0.0002,2]
[357516226,1744108243414,-720.067019,0.0002,2]
[357516227,1744108243424,-720.067019,0.00020341,2]
[357516228,1744108243435,-720.067019,0.00020425,2]
[357516229,1744108243445,-7933.07571091,0.00021726,2]
[357516230,1744108243454,-300.0,0.00021776,2]
[357516231,1744108243465,-1000.0,0.00022,2]
[357516232,1744108243474,-2585.44059105,0.00022058,2]
[357516233,1744108243484,-160.34888781,0.00022107,2]
[357516234,1744108243493,-163.32784889,0.00022207,2]
[357516235,1744108243502,-502.84958835,0.00022207,2]
[357516236,1744108243512,-502.93101652,0.00022207,2]
[357516237,1744108243521,-1000.0,0.00022486,2]
[357516238,1744108243530,-237.00071336,0.0002297,2]
[357516239,1744108243539,-1000.0,0.00023,2]
[357516240,1744108243548,-350.0,0.00023,2]
[357516241,1744108243558,-2722.2090388,0.000232,2]
[357516242,1744108243567,-326.08635471,0.00023268,2]
[357516243,1744108243577,-240.62948807,0.00023368,2]
[357516244,1744108243586,-5087.16,0.00023368,2]
[357516245,1744108243595,-249.2,0.00023368,2]
[357516246,1744108243603,-150.99,0.00023368,2]
[357516247,1744108243613,-150.0,0.00023528,2]
[357516248,1744108243622,-3032.84291106,0.00023553,2]
[357516249,1744108243646,-720.067019,0.00020525,2]
[357516250,1744108243655,-18071.42801545,0.00023553,2]
[357516251,1744108243681,-12211.62232924,0.00023553,2]
[357516252,1744108243691,-2585.44059105,0.00023809,2]
[357516253,1744108243701,-432.22,0.00023836,2]
[357516254,1744108243712,-1184.58,0.00023864,2]
[357516255,1744108243722,-500.0,0.00023945,2]
[357516256,1744108243731,-982.62924306,0.00024,2]
[357516257,1744108243740,-1000.0,0.00024,2]
[357516258,1744108243749,-5000.00569977,0.00024,5]
[357516259,1744108243758,-291.64034218,0.00024,2]
[357516260,1744108243768,-500.0,0.00024,2]
[357516261,1744108243777,-2044.0,0.00024194,2]
[357516262,1744108243786,-1286.0,0.00024194,2]
[357516263,1744108243795,-150.3,0.0002426,2]
[357516264,1744108243803,-150.3,0.00024278,2]
[357516265,1744108243813,-150.3,0.00024295,2]
[357516266,1744108243822,-150.3,0.00024312,2]
[357516267,1744108243831,-150.3,0.0002433,2]
[357516268,1744108243840,-150.3,0.00024347,2]
[357516269,1744108243848,-150.3,0.00024364,2]
[357516270,1744108243857,-150.3,0.00024382,2]
[357516271,1744108243867,-165955.0,0.000246,2]
[357516272,1744108243876,-1326.0,0.00024694,2]
[357516273,1744108243886,-790.0,0.00024694,2]
[357516274,1744108243896,-1435.0,0.00024694,2]
[357516275,1744108243906,-222.842,0.00024694,2]
[357516276,1744108243915,-1277.0,0.00024694,2]
[357516277,1744108243924,-4139.0,0.00024694,2]
[357516278,1744108243933,-574.0,0.00024694,2]
[357516280,1744108243943,-852.0,0.00024694,2]
[357516282,1744108243952,-151.0,0.00024694,2]
[357516284,1744108243962,-3957.0,0.00024694,2]
[357516285,1744108243971,-151.63,0.0002479,2]
[357516286,1744108243981,-150.0,0.00024799,2]
[357516287,1744108243993,-32265.74109366,0.000248,2]
[357516288,1744108244005,-2845.5848145,0.000248,2]
[357516291,1744108246472,-720.067019,0.0001982,2]
[357516292,1744108246482,-720.067019,0.00019983,2]
[357516293,1744108246492,-720.067019,0.00019985,2]
[357516294,1744108246501,-720.067019,0.00019999,2]
[357516295,1744108246511,-720.067019,0.00020525,2]
[357516296,1744108246522,-115.04161944,0.00024799,2]
[357516302,1744108780555,-151.0,0.0001982,2]
[357516303,1744108780590,-151.0,0.0001982,2]
[357516304,1744108780625,-264.362966,0.0001982,2]
[357516305,1744108780658,-151.0,0.0001982,2]
[357516306,1744108780690,-160.147819,0.0001982,2]
[357516307,1744108780735,-151.63157,0.0001982,2]
[357516308,1744108780776,-151.0,0.0001982,2]
[357516309,1744108780813,-1000.0,0.000199,2]
[357516310,1744108780850,-181.907798,0.00019983,2]
[357516311,1744108780876,-151.0,0.00019983,2]
[357516312,1744108780901,-151.0,0.00019983,2]
[357516313,1744108780927,-151.0,0.00019983,2]
[357516314,1744108780952,-151.0,0.00019985,2]
[357516315,1744108780983,-151.0,0.00019985,2]
[357516316,1744108781010,-157.532948,0.00019985,2]
[357516317,1744108781037,-288.516485,0.00019999,2]
[357516318,1744108781065,-152.791786,0.00019999,2]
[357516319,1744108781093,-720.067019,0.0002,2]
[357516320,1744108781709,-720.067019,0.0002,2]
[357516321,1744108781744,-720.067019,0.00020341,2]
[357516322,1744108781768,-720.067019,0.00020425,2]
[357516323,1744108781793,-720.067019,0.00020525,2]
[357516324,1744108781817,-720.067019,0.00020525,2]
[357516325,1744108781842,-14366.94950102,0.00021485,2]
[357516326,1744108781868,-1366.0,0.00021684,2]
[357516327,1744108781893,-250.0,0.00021802,2]
[357516328,1744108781917,-1436.0,0.00022174,2]
[357516329,1744108781943,-908.0,0.00022174,2]
[357516330,1744108781968,-1277.0,0.00022174,2]
[357516331,1744108781992,-790.0,0.00022174,2]
[357516332,1744108782018,-550.43,0.00022174,2]
[357516333,1744108782042,-4141.0,0.00022174,2]
[357516334,1744108782066,-852.0,0.00022174,2]
[357516335,1744108782090,-1120.0,0.00022174,2]
[357516336,1744108782114,-3692.76,0.00022768,2]
[357516337,1744108782141,-2000.0,0.0002285,2]
[357516338,1744108782165,-200.0,0.00022872,2]
[357516339,1744108782192,-1085.054,0.00023,2]
[357516340,1744108782216,-200.0,0.00023,2]
[357516341,1744108782241,-250.0,0.00023178,2]
[357516342,1744108782265,-1000.0,0.00023273,2]
[357516343,1744108782290,-1764.13,0.0002336,2]
[357516344,1744108782314,-2981.37,0.00023368,2]
[357516345,1744108782338,-150.99,0.00023368,2]
[357516346,1744108782362,-5582.98,0.00023368,2]
[357516347,1744108782387,-1589.2631642,0.00023513,2]
[357516348,1744108782411,-609.77984878,0.000237,3]
[357516469,1744109439720,-605.86277463,0.00021834,2]
[357516474,1744109440505,-401.02722537,0.00021834,2]
[357516475,1744109440514,-222.86298798,0.00021917,2]
[357516481,1744109442588,-3.86701202,0.00021917,2]
[357516482,1744109442597,-153.253,0.00022174,2]
[357516483,1744109442606,-1286.0,0.00022174,2]
[357516484,1744109442616,-2044.0,0.00022174,2]
[357516485,1744109442625,-715.834,0.00022174,2]
[357516486,1744109442635,-1326.0,0.00022174,2]
[357516487,1744109442644,-1436.0,0.00022174,2]
[357516488,1744109442653,-790.0,0.00022174,2]
[357516489,1744109442662,-153.82798798,0.00022174,2]
[357516497,1744109443060,-1123.17201202,0.00022174,2]
[357516499,1744109443069,-139.92468356,0.00022174,2]
[357516512,1744109716123,-250.0,0.00019,2]
[357516513,1744110247580,3998.864092,7.945e-05,2]
[357516681,1744110639883,-623.75043822,0.000171,3]
[357516885,1744110645857,-3961.0563,0.000171,3]
[357516886,1744110741860,203.0,0.00033,120]
[357516887,1744111528040,1.135908,0.00011,2]
[357516888,1744111528066,544.94917774,0.00011,2]
[357516889,1744111536926,257.84171127,8e-05,2]
[357516890,1744111555157,3004.05530071,6.94e-05,2]
[357516896,1744111697424,-7659.01373497,0.00015,2]
[357516897,1744111697476,-6451.52192648,0.00015,2]
[357516898,1744111722524,-7941.2244482,0.00015,2]
[357516899,1744111722595,-4795.820429,0.00015,2]
[357517031,1744111838203,-570.15,0.00015,2]
[357517163,1744111840028,-3011.24630936,0.00015,2]
[357517164,1744111840038,-168.49891184,0.000189,2]
[357517165,1744111840048,-250.0,0.00019,2]
[357517166,1744111840057,-1144.12119965,0.00019999,5]
[357517167,1744111840066,-191.9487271,0.0002,2]
[357517168,1744111840076,-101796.06441214,0.0002,2]
[357517169,1744111840086,-42293.51853665,0.0002,4]
[357517170,1744111840095,-1669.53752464,0.0002015,2]
[357517171,1744111840107,-393.0,0.00020712,2]
[357517172,1744111840117,-956.54,0.00020812,2]
[357517173,1744111840127,-2500.0,0.00020867,2]
[357517174,1744111840136,-30355.90482242,0.00020868,2]
[357517175,1744111840149,-1326.0,0.00020968,2]
[357517176,1744111840159,-1436.0,0.00020968,2]
[357517177,1744111840168,-907.0,0.00020968,2]
[357517178,1744111840178,-790.0,0.00020968,2]
[357517179,1744111840188,-1277.0,0.00020968,2]
[357517180,1744111840198,-4141.0,0.00020968,2]
[357517181,1744111840208,-544.0,0.00020968,2]
[357517182,1744111840219,-1120.0,0.00020968,2]
[357517183,1744111840228,-300.0,0.00021,2]
[357517184,1744111840238,-521.95733703,0.00021,2]
[357517185,1744111840247,-2470.96044416,0.00021,2]
[357517186,1744111840256,-190.73110453,0.00021,2]
[357517187,1744111840266,-1151.70002099,0.00021,2]
[357517188,1744111840275,-190.08237317,0.00021,2]
[357517189,1744111840284,-151.0,0.00021674,2]
[357517190,1744111840294,-574.0,0.00021674,2]
[357517191,1744111840303,-1286.0,0.00021674,2]
[357517192,1744111840312,-262.28034175,0.000217,2]
[357517193,1744111840322,-247.11416524,0.00022,2]
[357517194,1744111840331,-500.0,0.00022,2]
[357517195,1744111840341,-231.57498015,0.0002211,2]
[357517196,1744111840351,-250.0,0.00022174,2]
[357517197,1744111840360,-1609.2058565,0.00022305,2]
[357517198,1744111840370,-250.0,0.0002232,2]
[357517199,1744111840380,-200.0,0.0002236,7]
[357517200,1744111840389,-206.72,0.00022367,2]
[357517201,1744111840399,-1000.0,0.00022409,2]
[357517202,1744111840408,-23900.0,0.00022447,2]
[357517203,1744111840417,-1147.16757625,0.000225,2]
[357517204,1744111840427,-187.31,0.0002256,2]
[357517205,1744111840436,-8504.86,0.00022576,2]
[357517206,1744111840446,-30355.90482233,0.00022587,2]
[357517207,1744111840455,-503.97184786,0.0002271,2]
[357517208,1744111840465,-200.0,0.00022799,2]
[357517209,1744111840474,-1067.0,0.0002283,2]
[357517210,1744111840484,-800.19,0.00022883,2]
[357517211,1744111840494,-185.07,0.00022926,2]
[357517212,1744111840504,-877.8155,0.0002293,2]
[357517213,1744111840514,-500.0,0.00023,2]
[357517214,1744111840524,-500.0,0.00023,2]
[357517215,1744111840534,-350.0,0.00023,2]
[357517216,1744111840543,-921.2864,0.00023033,2]
[357517217,1744111840553,-956.54,0.00023076,2]
[357517219,1744111840563,-868.043,0.00023178,3]
[357517220,1744111840572,-151.0,0.00023178,7]
[357517222,1744111840582,-152.518229,0.00023178,7]
[357517223,1744111840591,-151.0,0.00023178,7]
[357517224,1744111840600,-151.0,0.00023178,7]
[357517225,1744111840610,-151.0,0.00023178,7]
[357517226,1744111840620,-151.0,0.00023178,7]
[357517227,1744111840629,-31664.19909057,0.000232,2]
[357517228,1744111840639,-200.0,0.000235,2]
[357517229,1744111840648,-2771.21536722,0.00023644,2]
[357517230,1744111840658,-1000.0,0.00023644,2]
[357517231,1744111840667,-72613.91297967,0.00023696,2]
[357517232,1744111840719,-1310.55950644,0.00023696,2]
[357517236,1744111843182,-913.44,0.0002,2]
[357517237,1744111843196,-9518.59284828,0.0002,2]
[357517238,1744111843208,-4836.0,0.0002,2]
[357517258,1744111843599,-6315.3,0.0002,2]
[357517259,1744111843620,-208.14679536,0.0002,2]
[357517260,1744111843631,-1099.45166358,0.0002,2]
[357517261,1744111843642,-2535.02377286,0.0002,2]
[357517262,1744111843653,-6397.3587318,0.0002,2]
[357517263,1744111843668,-30233.81877971,0.0002,2]
[357517265,1744111846234,-826.00000001,0.0002,2]
[357517266,1744111846287,-320.44551206,0.0002,2]
[357517280,1744112920797,752.19538819,0.0002,2]
[357517286,1744113032439,-868.6413,0.0002005,2]
[357517287,1744113032448,-1000.0,0.00020768,2]
[357517288,1744113032458,-874.89,0.00021357,2]
[357517289,1744113032467,-150.0,0.00022027,2]
[357517291,1744113032476,-574.0,0.00022043,2]
[357517292,1744113032487,-1252.10361755,0.00022043,2]
[357517293,1744113032573,-33.89638245,0.00022043,2]
[357517294,1744113032585,-575.5524985,0.00022043,2]
[357517328,1744113038223,-1468.4475015,0.00022043,2]
[357517329,1744113038234,-812.766725,0.00022043,2]
[357517330,1744113038314,-513.233275,0.00022043,2]
[357517331,1744113038324,-1277.0,0.00022043,2]
[357517332,1744113038333,-450.15875859,0.00022043,2]
[357517333,1744113038353,-985.84124141,0.00022043,2]
[357517334,1744113038362,-790.0,0.00022043,2]
[357517335,1744113038371,-907.0,0.00022043,2]
[357517336,1744113038381,-544.0,0.00022043,2]
[357517337,1744113038390,-4141.0,0.00022043,2]
[357517338,1744113038400,-151.0,0.00022043,2]
[357517339,1744113038409,-2374.27670393,0.00022043,2]
[357517340,1744113038456,-1582.72329607,0.00022043,2]